bitfinex/quotes_ETHUSD_20250511
["timestamp","ask_amount","ask_price","bid_price","bid_amount"]
[1746990588716,8.71985877,2505.7,2505.1,0.05]
[1746990588917,12.13685877,2505.7,2505.1,0.05]
[1746990589642,8.1459227,2505.7,2505.1,0.05]
[1746990590723,12.13690308,2505.7,2505.1,0.05]
[1746990591454,8.71990308,2505.7,2505.1,0.05]
[1746990591614,12.11490308,2505.7,2505.1,0.05]
[1746990591947,4.7289227,2505.7,2505.1,0.05]
[1746990592122,8.1189227,2505.7,2505.1,0.05]
[1746990592944,4.7289227,2505.7,2505.1,0.05]
[1746990593148,8.1119227,2505.7,2505.1,0.05]
[1746990593827,12.10285601,2505.7,2505.1,0.05]
[1746990594028,4.7289227,2505.7,2505.1,0.05]
[1746990594352,3.98913231,2506.9,2505.3,0.7912]
[1746990594353,3.374,2506.1,2505.3,0.7912]
[1746990594556,3.374,2506.1,2505.3,2.08783354]
[1746990594721,8.1009227,2506.3,2505.3,2.08783354]
[1746990595263,12.09090526,2506.3,2505.3,2.08783354]
[1746990596813,8.1009227,2506.3,2505.3,2.08783354]
[1746990597107,12.09088448,2506.3,2505.3,2.08783354]
[1746990599243,3.99011302,2506.2,2505.3,2.08783354]
[1746990599564,4.7289227,2506.3,2505.3,2.08783354]
[1746990599765,12.05087309,2506.3,2505.4,0.03990912]
[1746990599962,8.0609227,2506.3,2505.4,0.03990912]
[1746990600124,4.7289227,2506.3,2505.4,0.03990912]
[1746990600326,8.0569227,2506.3,2505.4,0.03990912]
[1746990600728,12.04694204,2506.3,2505.4,0.03990912]
[1746990600949,3.99010454,2506.2,2505.3,2.08783354]
[1746990601326,0.7879,2506.5,2505.4,16.58882801]
[1746990601546,3.321,2506.6,2505.5,0.7726]
[1746990601744,3.321,2506.6,2505.6,0.0399027]
[1746990602146,7.31048799,2506.6,2505.6,8.0399027]
[1746990602668,3.321,2506.6,2505.6,8.0399027]
[1746990602869,7.31049504,2506.6,2505.6,9.77604485]
[1746990603434,3.321,2506.6,2505.6,9.77604485]
[1746990603934,7.31047371,2506.6,2505.6,9.77604485]
[1746990604633,12.13329202,2506.7,2505.6,9.77604485]
[1746990604954,8.0269227,2506.7,2505.8,8.0]
[1746990605163,8.0269227,2506.7,2505.9,1.33081228]
[1746990605333,3.298,2506.7,2505.9,1.33081228]
[1746990607585,3.298,2506.7,2505.9,0.03989874]
[1746990607870,3.298,2506.7,2505.7,0.784]
[1746990607871,3.98973074,2506.5,2505.7,0.784]
[1746990608172,7.28732523,2506.7,2505.7,0.784]
[1746990608374,7.28732523,2506.7,2505.8,0.03990164]
[1746990608669,7.28732523,2506.7,2505.7,0.784]
[1746990609395,3.98947772,2506.6,2505.7,0.784]
[1746990609596,0.22328738,2506.5,2505.7,0.784]
[1746990609751,0.22328738,2506.5,2505.7,1.6624]
[1746990610792,12.01627686,2506.7,2505.7,1.6624]
[1746990610793,0.22328738,2506.4,2505.7,1.6624]
[1746990611086,0.22328738,2506.4,2505.8,0.03990167]
[1746990611500,4.7289227,2506.7,2505.8,0.03990167]
[1746990611659,4.7289227,2506.7,2505.7,1.6624]
[1746990612491,0.22316719,2506.6,2505.7,1.6624]
[1746990612996,4.7289227,2506.7,2505.7,1.6624]
[1746990614701,0.22313335,2506.6,2505.7,1.6624]
[1746990615189,4.7289227,2506.7,2505.7,1.6624]
[1746990615556,11.9619904,2506.9,2505.7,1.6624]
[1746990616264,0.22315332,2506.8,2505.7,1.6624]
[1746990617179,0.22315332,2506.7,2505.7,0.8784]
[1746990617377,0.22315332,2506.7,2506.1,0.767]
[1746990617605,0.22315332,2506.7,2506.3,0.767]
[1746990617812,0.22315332,2506.7,2506.4,0.03989136]
[1746990618105,4.7289227,2507.6,2506.5,8.767]
[1746990618270,4.7289227,2507.6,2506.6,0.03988633]
[1746990618467,4.7289227,2507.8,2506.6,0.03988633]
[1746990618656,7.9379227,2507.8,2506.7,8.767]
[1746990618858,0.22294877,2507.7,2506.9,8.758]
[1746990619372,4.7289227,2507.8,2506.9,8.758]
[1746990619994,4.7289227,2507.8,2506.9,0.758]
[1746990620201,3.98799513,2507.6,2506.9,0.758]
[1746990622616,0.7657,2507.7,2506.9,0.758]
[1746990622898,0.7657,2507.7,2506.2,4.61107002]
[1746990622899,3.98819494,2507.4,2506.6,0.758]
[1746990623101,7.17819494,2507.4,2506.6,0.758]
[1746990623663,4.21111874,2507.3,2506.6,0.758]
[1746990624116,3.98935627,2506.7,2506.2,0.825]
[1746990624424,8.71777872,2507.0,2506.2,0.825]
[1746990624840,8.71783892,2507.0,2506.2,0.825]
[1746990624993,3.181,2506.9,2506.3,0.03989844]
[1746990625193,3.40395944,2506.9,2506.2,1.7075]
[1746990625707,3.181,2506.9,2506.2,1.7075]
[1746990625894,3.181,2506.9,2506.3,0.03989225]
[1746990626300,3.181,2506.9,2506.4,0.825]
[1746990626734,4.7289227,2507.0,2506.4,0.825]
[1746990627527,3.98852815,2507.2,2506.4,0.825]
[1746990627734,3.98844857,2507.3,2506.4,0.825]
[1746990628226,0.22306987,2507.2,2506.4,0.825]
[1746990628796,3.98906793,2506.9,2506.4,0.825]
[1746990629131,3.98883311,2507.0,2506.4,0.825]
[1746990629305,0.22306987,2506.9,2506.4,0.825]
[1746990630158,3.9893273,2506.7,2506.1,0.8065]
[1746990630333,3.98930865,2506.7,2506.1,0.8065]
[1746990630494,0.22306987,2506.8,2506.1,0.8065]
[1746990630932,4.21242444,2506.7,2506.1,0.8065]
[1746990631087,3.98950878,2506.6,2506.1,0.8065]
[1746990631498,0.7934,2506.9,2506.1,0.8065]
[1746990631737,4.78247627,2506.9,2506.1,0.8065]
[1746990632038,3.98907627,2506.9,2506.1,0.8065]
[1746990632197,0.22327262,2506.8,2506.1,0.8065]
[1746990632901,0.22327262,2506.8,2506.2,0.0398985]
[1746990633201,4.7289227,2507.7,2507.1,16.916794]
[1746990633403,9.52737456,2507.9,2507.1,0.8206]
[1746990633623,0.22323164,2507.8,2507.1,0.8206]
[1746990633839,0.22323164,2507.7,2507.1,0.8206]
[1746990634260,9.52737456,2507.9,2507.1,0.8206]
[1746990634753,0.22320025,2507.8,2507.1,0.8206]
[1746990635636,0.22320025,2507.7,2507.1,0.8206]
[1746990636304,0.22320025,2507.6,2507.1,0.8206]
[1746990637213,9.52737456,2507.9,2507.1,0.8206]
[1746990637899,3.98756467,2507.8,2507.1,0.8206]
[1746990638239,0.22312341,2507.7,2507.1,0.8206]
[1746990639001,0.22312341,2507.6,2507.1,0.8206]
[1746990639528,0.22312341,2507.6,2507.2,0.03987865]
[1746990639714,0.22312341,2507.6,2507.2,0.92592651]
[1746990640101,0.22312341,2508.1,2507.2,0.92592651]
[1746990640303,0.22312341,2508.1,2507.2,0.03987865]
[1746990640735,0.22312341,2508.0,2507.2,0.03987865]
[1746990641620,9.51014049,2508.2,2507.2,0.03987865]
[1746990642034,9.51014049,2508.2,2507.1,0.8206]
[1746990642341,4.21008959,2508.1,2507.1,0.8206]
[1746990642538,4.21008959,2508.1,2507.2,8.0]
[1746990642539,3.98746583,2507.9,2507.2,8.0]
[1746990642719,3.98749118,2507.9,2507.2,8.0]
[1746990643044,3.98729746,2508.0,2507.2,8.0]
[1746990643350,3.98762857,2507.8,2507.1,0.8206]
[1746990643510,3.98748938,2507.9,2507.1,0.8206]
[1746990644235,0.2230301,2507.8,2507.1,0.8206]
[1746990644431,4.21060573,2507.8,2507.1,0.8206]
[1746990644823,0.2230301,2507.7,2507.1,0.8206]
[1746990646044,0.2230301,2507.8,2507.2,0.03988298]
[1746990646213,0.2230301,2507.8,2507.3,0.8294]
[1746990646412,0.05,2508.4,2507.7,0.8294]
[1746990646622,0.05,2508.4,2507.9,0.8294]
[1746990646851,0.05,2508.4,2508.0,0.03986519]
[1746990647049,0.05,2508.4,2508.0,2.395]
[1746990647239,0.05,2508.4,2508.0,8.0]
[1746990649433,0.05,2508.4,2508.2,8.0]
[1746990649613,0.05,2508.4,2508.3,10.447651]
[1746990649813,0.05,2508.4,2508.3,12.410751]
[1746990650118,0.05,2508.4,2508.3,10.427751]
[1746990650624,0.05,2508.4,2508.3,8.0]
[1746990655025,0.05,2508.4,2508.3,27.810649]
[1746990655232,0.05,2508.4,2508.3,12.827568]
[1746990658078,0.05,2508.4,2508.3,12.027568]
[1746990658218,0.05,2508.4,2508.3,0.8143]
[1746990658421,0.05,2508.4,2508.0,8.8009]
[1746990659463,0.05,2508.4,2508.0,0.8009]
[1746990659654,0.05,2508.4,2508.0,8.8009]
[1746990659851,4.03663126,2508.4,2507.8,8.0]
[1746990660280,7.95473119,2508.2,2507.4,0.7504]
[1746990660481,7.95469868,2508.2,2507.4,0.7504]
[1746990660795,3.7907,2508.3,2507.4,0.7504]
[1746990660995,7.77759301,2508.3,2507.4,1.62544]
[1746990661302,9.2466242,2508.2,2507.4,0.7504]
[1746990661602,3.98747051,2507.9,2507.1,0.7504]
[1746990661750,3.98730859,2508.0,2507.1,0.7504]
[1746990662088,9.2466242,2508.2,2507.1,0.7504]
[1746990662290,3.98754305,2507.9,2507.1,0.7504]
[1746990662600,3.026,2508.1,2507.1,8.7504]
[1746990662893,3.026,2508.1,2507.2,1.27181015]
[1746990663850,7.01309261,2508.1,2507.2,1.27181015]
[1746990664201,7.01311847,2508.1,2507.2,1.27181015]
[1746990664496,3.026,2508.1,2507.1,0.7504]
[1746990665047,7.01311447,2508.1,2507.1,0.7504]
[1746990665450,3.9875133,2507.9,2507.1,0.7504]
[1746990665803,3.026,2508.1,2507.2,0.03988135]
[1746990666853,4.7289227,2508.2,2507.4,8.0]
[1746990667057,4.7289227,2508.2,2507.4,8.84386461]
[1746990667281,4.7289227,2508.2,2507.5,0.7575]
[1746990667602,4.7289227,2508.2,2507.6,0.0398717]
[1746990667810,4.7289227,2508.2,2507.5,0.7575]
[1746990669505,4.7289227,2508.2,2507.6,0.03987173]
[1746990669719,0.05,2508.4,2507.6,1.00000772]
[1746990669858,0.05,2508.4,2507.7,0.7607]
[1746990672159,0.05,2508.4,2507.7,4.7284015]
[1746990672400,0.05,2508.4,2507.8,0.7607]
[1746990672601,0.05,2508.4,2508.1,0.7607]
[1746990672824,0.05,2508.4,2508.3,8.0]
[1746990672977,0.05,2508.4,2508.3,52.4792195]
[1746990673671,0.05,2508.4,2508.3,53.0292195]
[1746990674386,0.05,2508.4,2508.3,55.4242195]
[1746990675101,0.05,2508.4,2508.3,53.0292195]
[1746990675399,0.05,2508.4,2508.3,57.13144701]
[1746990677715,0.05,2508.4,2508.3,58.62774551]
[1746990678008,0.05,2508.4,2508.3,49.26436451]
[1746990678718,0.05,2508.4,2508.3,53.78206601]
[1746990679960,0.05,2508.4,2508.3,55.71637502]
[1746990680819,0.05,2508.4,2508.3,53.78206601]
[1746990681021,0.05,2509.4,2508.6,0.55]
[1746990681206,0.05,2509.4,2509.3,13.2853015]
[1746990681415,0.05,2509.4,2509.3,59.5033515]
[1746990682113,0.05,2509.4,2509.3,54.98165]
[1746990682309,0.05,2509.4,2509.3,55.53165]
[1746990682638,0.05,2509.4,2509.3,57.48540433]
[1746990682825,0.05,2509.4,2509.3,61.58763184]
[1746990683420,0.05,2509.4,2509.3,59.63387751]
[1746990690870,0.05,2509.4,2509.3,61.58763184]
[1746990691227,0.05,2509.4,2509.3,59.54887751]
[1746990692160,0.05,2509.4,2509.3,61.94387751]
[1746990692357,0.05,2509.4,2509.3,59.54887751]
[1746990692536,0.05,2509.4,2509.3,57.68300851]
[1746990692737,0.05,2509.4,2509.3,51.19600851]
[1746990692943,0.05,2509.4,2509.3,30.01881151]
[1746990695176,0.05,2509.4,2509.3,11.211984]
[1746990695338,0.05,2509.4,2509.3,8.196285]
[1746990695551,0.05,2509.4,2509.2,8.0]
[1746990695784,0.05,2509.4,2509.3,18.090008]
[1746990696246,0.05,2509.4,2509.3,5.585933]
[1746990696446,0.05,2509.4,2509.2,8.0]
[1746990696642,0.05,2509.4,2509.3,7.964783]
[1746990696846,0.05,2509.4,2509.0,17.313]
[1746990696847,0.05,2509.4,2509.2,8.133605]
[1746990697047,0.05,2509.4,2509.2,8.0]
[1746990697278,0.05,2509.4,2509.3,7.867404]
[1746990697488,0.05,2509.4,2509.3,8.0]
[1746990697703,0.05,2509.4,2509.3,23.360389]
[1746990698067,0.05,2509.4,2509.3,25.6964279]
[1746990698747,0.05,2509.4,2509.3,22.2524579]
[1746990699147,0.05,2509.4,2509.3,25.2204579]
[1746990702046,0.05,2509.4,2509.3,27.6154579]
[1746990702288,0.05,2509.4,2509.3,28.1654579]
[1746990702787,0.05,2509.4,2509.3,17.0512389]
[1746990702995,0.05,2509.4,2509.3,57.2432889]
[1746990703311,0.05,2509.4,2509.3,60.2122889]
[1746990705537,0.05,2509.4,2509.3,62.16604323]
[1746990706530,0.05,2510.4,2509.3,62.16604323]
[1746990706747,0.05,2510.4,2509.7,10.395]
[1746990707050,0.05,2510.4,2509.8,0.03983272]
[1746990707208,0.05,2510.4,2510.0,8.0]
[1746990707408,0.05,2510.4,2510.1,0.03983273]
[1746990707735,0.05,2510.4,2510.0,8.0]
[1746990707934,0.05,2510.4,2510.1,1.0969]
[1746990708131,0.05,2510.4,2510.2,0.03983275]
[1746990708433,0.05,2510.4,2510.1,1.0969]
[1746990710546,0.05,2510.4,2510.0,8.0]
[1746990710864,0.05,2510.4,2509.4,2.969]
[1746990710865,4.79364135,2510.3,2509.4,2.969]
[1746990711031,0.81,2510.2,2509.4,2.969]
[1746990711349,0.81,2510.2,2509.4,8.0]
[1746990711654,0.81,2509.9,2509.2,2.969]
[1746990711825,0.81,2509.9,2509.3,8.0]
[1746990712151,0.81,2509.9,2509.2,2.969]
[1746990712452,0.81,2509.9,2509.3,8.0]
[1746990712981,0.7501,2510.1,2509.3,1.1367506]
[1746990713128,0.7501,2510.1,2509.3,8.0398506]
[1746990713318,0.7501,2510.1,2509.3,8.0]
[1746990713815,0.7501,2510.1,2509.4,2.969]
[1746990714017,0.7501,2510.1,2509.1,8.0]
[1746990714284,0.7501,2510.1,2509.2,8.0]
[1746990714413,0.7501,2510.1,2509.2,10.969]
[1746990714612,3.98391347,2510.1,2509.2,2.969]
[1746990714849,0.97344484,2510.0,2509.1,10.969]
[1746990715038,0.97344484,2510.0,2509.1,13.5003]
[1746990715361,0.7501,2509.8,2509.1,8.0]
[1746990716639,0.7501,2509.8,2509.2,0.03985106]
[1746990716957,0.7501,2509.8,2509.1,8.7865]
[1746990717164,0.7501,2509.8,2509.2,40.23189378]
[1746990717461,0.7501,2510.1,2509.3,48.19205]
[1746990717621,0.7501,2510.1,2509.5,8.0]
[1746990717970,0.7501,2510.1,2509.7,8.0]
[1746990718146,0.7501,2510.1,2509.9,8.0]
[1746990718357,0.7501,2510.1,2510.0,13.116566]
[1746990718515,0.7501,2510.1,2510.0,16.060292]
[1746990719946,0.8803,2510.4,2510.0,6.961292]
[1746990720147,0.8803,2510.4,2509.5,8.0]
[1746990720344,0.8803,2510.4,2509.6,1.0966]
[1746990721942,0.8803,2510.4,2509.5,8.0]
[1746990722140,0.8803,2510.4,2509.5,8.03984323]
[1746990722373,0.8803,2510.4,2509.5,8.0]
[1746990726673,0.7834,2510.3,2509.5,8.0]
[1746990727769,0.8293,2510.2,2509.4,8.0]
[1746990728230,0.8293,2510.2,2509.4,9.13634607]
[1746990728563,0.8293,2510.2,2509.4,9.0965]
[1746990729072,0.8293,2510.2,2509.4,8.0]
[1746990729696,3.98393378,2510.1,2509.0,14.344]
[1746990729988,3.98413799,2510.0,2509.1,8.0]
[1746990730156,0.7614,2509.9,2509.1,8.0]
[1746990730360,0.7614,2509.9,2509.1,8.03985095]
[1746990730684,0.7614,2509.9,2509.2,2.2383851]
[1746990734492,0.7614,2509.9,2509.3,0.03984819]
[1746990736169,0.7614,2509.9,2509.2,2.2383851]
[1746990736372,0.7614,2509.9,2509.1,8.0]
[1746990736689,3.98432695,2509.9,2509.1,8.0]
[1746990736904,0.7751,2509.6,2508.5,2.966]
[1746990737089,0.7751,2509.5,2508.5,2.966]
[1746990737407,0.7751,2509.5,2508.6,0.03985781]
[1746990737608,0.7751,2509.5,2508.6,8.30058578]
[1746990740400,0.8046,2509.4,2508.6,8.0]
[1746990741029,0.8046,2509.4,2508.7,0.03985776]
[1746990743621,2.7,2509.2,2508.7,0.03985776]
[1746990744029,0.8046,2509.4,2508.7,0.03985776]
[1746990745424,0.8046,2509.4,2508.7,0.82275776]
[1746990745587,0.8046,2509.4,2508.8,0.88227578]
[1746990745792,0.8046,2509.4,2508.9,0.03985215]
[1746990747030,0.8046,2509.4,2508.8,0.88227578]
[1746990747190,0.8046,2509.4,2508.9,8.0]
[1746990751346,0.8046,2509.4,2508.7,8.0]
[1746990751848,3.98519169,2509.3,2508.7,8.0]
[1746990752013,0.8163,2509.2,2508.7,8.0]
[1746990753747,2.7,2509.0,2508.7,8.0]
[1746990753965,0.8089,2508.7,2508.0,2.961]
[1746990754167,0.8089,2508.7,2508.0,4.86036724]
[1746990754350,0.8089,2508.7,2508.1,8.0]
[1746990754510,0.8089,2508.7,2508.0,4.86036724]
[1746990754711,0.8089,2508.7,2508.1,8.0]
[1746990755257,0.8089,2508.7,2508.1,8.03986656]
[1746990755555,0.8089,2508.7,2508.2,1.29002338]
[1746990756151,0.8089,2508.7,2508.3,0.03985902]
[1746990757229,0.8089,2508.7,2508.3,8.03985902]
[1746990757643,0.8089,2508.7,2508.3,8.0]
[1746990757837,2.959,2509.1,2508.5,8.0]
[1746990757838,0.8089,2508.9,2508.5,8.0]
[1746990758081,0.8089,2508.9,2508.5,12.10222751]
[1746990758378,0.8089,2508.9,2508.6,0.03985925]
[1746990758529,0.8089,2508.9,2508.4,0.03985829]
[1746990758847,2.7,2508.7,2508.4,0.03985829]
[1746990759052,0.8089,2508.9,2508.8,8.0]
[1746990759252,0.8089,2508.9,2508.3,8.0]
[1746990759469,0.8089,2508.9,2508.4,1.26466051]
[1746990760833,0.8089,2508.9,2508.4,1.22480234]
[1746990762382,0.8089,2508.9,2508.5,2.961]
[1746990766670,0.8089,2508.9,2508.2,1.29002338]
[1746990766871,3.98606978,2508.8,2507.9,14.337]
[1746990767182,0.8086,2508.6,2507.9,14.337]
[1746990767351,0.8086,2508.6,2508.0,8.0]
[1746990768882,1.7,2508.4,2508.0,8.0]
[1746990769091,0.8092,2508.3,2508.0,8.0]
[1746990769385,0.8092,2508.3,2508.1,4.096122]
[1746990769854,0.8092,2508.3,2507.8,1.69567238]
[1746990770792,0.8092,2508.0,2507.8,1.69567238]
[1746990771144,0.8092,2508.0,2507.1,0.05]
[1746990771689,0.8092,2508.0,2507.2,0.80117943]
[1746990771991,5.4903227,2508.3,2507.6,8.7613]
[1746990772285,0.7614,2508.3,2507.4,8.0]
[1746990773783,2.7,2508.1,2507.4,8.0]
[1746990774167,0.7844,2508.0,2507.4,8.0]
[1746990774551,0.7844,2508.0,2507.5,1.12866179]
[1746990774701,0.7844,2508.0,2507.4,8.0]
[1746990775011,0.7844,2508.0,2507.1,8.05]
[1746990775305,0.7844,2508.0,2507.3,2.962]
[1746990775489,0.7844,2508.0,2507.4,8.0]
[1746990775695,0.817,2507.9,2507.4,8.0]
[1746990776403,0.817,2507.9,2507.1,0.05]
[1746990776703,0.817,2507.9,2507.2,8.0]
[1746990777404,3.98748092,2507.9,2507.1,3.012]
[1746990777614,0.817,2507.8,2507.1,3.012]
[1746990777797,0.817,2507.7,2507.2,8.0]
[1746990779005,2.7,2507.5,2507.2,8.0]
[1746990779691,0.817,2507.7,2507.2,8.0]
[1746990781633,0.817,2507.6,2507.2,8.0]
[1746990782138,0.817,2507.5,2507.1,0.05]
[1746990782833,0.55,2507.7,2507.1,0.05]
[1746990783004,4.80551308,2507.2,2507.1,0.05]
[1746990783394,0.817,2507.2,2507.1,0.05]
[1746990783939,3.517,2507.2,2507.1,0.05]
[1746990784428,0.817,2507.2,2507.1,0.05]
[1746990785143,4.80551308,2507.2,2507.1,0.05]
[1746990786033,5.35551308,2507.2,2507.1,0.05]
[1746990786197,10.08443578,2507.2,2507.1,0.05]
[1746990786623,9.53443578,2507.2,2507.1,0.05]
[1746990789039,11.23443578,2507.2,2507.1,0.05]
[1746990790325,11.78443578,2507.2,2507.1,0.05]
[1746990790903,17.14043578,2507.2,2507.1,0.05]
[1746990792502,7.2459227,2507.2,2507.1,0.05]
[1746990792708,5.5459227,2507.2,2507.1,0.05]
[1746990793144,9.53443578,2507.2,2507.1,0.05]
[1746990798323,5.5459227,2507.2,2507.1,0.05]
[1746990798963,8.2459227,2507.2,2507.1,0.05]
[1746990799139,5.5459227,2507.2,2507.1,0.05]
[1746990800052,9.53443578,2507.2,2507.1,0.05]
[1746990800994,5.5459227,2507.2,2507.1,0.05]
[1746990802375,5.741,2510.6,2507.1,0.05]
[1746990802376,0.7689,2507.5,2507.1,0.05]
[1746990802585,0.7689,2507.9,2507.1,0.8407]
[1746990802773,0.7689,2507.9,2507.2,0.03987824]
[1746990802971,0.7689,2507.9,2507.1,0.8407]
[1746990803958,2.7,2507.7,2507.1,0.8407]
[1746990806458,6.68776204,2507.7,2507.1,0.8407]
[1746990806775,6.68776204,2507.7,2507.1,0.05]
[1746990806776,3.98796315,2507.6,2507.1,0.05]
[1746990807295,0.7689,2507.5,2507.1,0.05]
[1746990809204,4.7569492,2507.5,2507.1,0.05]
[1746990809704,0.7689,2507.5,2507.1,0.05]
[1746990810066,6.93223073,2507.4,2507.1,0.05]
[1746990810563,2.944,2507.4,2507.1,0.05]
[1746990810995,6.93222462,2507.4,2507.1,0.05]
[1746990813917,0.22339904,2507.2,2507.1,0.05]
[1746990814677,2.92339904,2507.2,2507.1,0.05]
[1746990815014,0.22339904,2507.2,2507.1,0.05]
[1746990815812,4.21191212,2507.2,2507.1,0.05]
[1746990817649,8.94083482,2507.2,2507.1,0.05]
[1746990820332,10.64083482,2507.2,2507.1,0.05]
[1746990820912,11.98493482,2507.2,2507.1,0.05]
[1746990821842,22.17493482,2507.2,2507.1,0.05]
[1746990822041,24.08267341,2507.2,2507.1,0.05]
[1746990822351,22.17494538,2507.2,2507.1,0.05]
[1746990823230,24.08268397,2507.2,2507.1,0.05]
[1746990823425,22.17494538,2507.2,2507.1,0.05]
[1746990823654,20.47494538,2507.2,2507.1,0.05]
[1746990824962,25.80894538,2507.2,2507.1,0.05]
[1746990825322,26.35894538,2507.2,2507.1,0.05]
[1746990830552,29.05894538,2507.2,2507.1,0.05]
[1746990831256,18.31594538,2507.2,2507.1,0.05]
[1746990831448,17.52184538,2507.2,2507.1,0.05]
[1746990831652,18.29404538,2507.2,2507.1,0.05]
[1746990832304,18.62063578,2507.2,2507.1,0.05]
[1746990832516,18.84355978,2507.2,2507.1,0.05]
[1746990838096,15.35755978,2507.2,2507.1,0.05]
[1746990838301,10.5848467,2507.2,2507.1,0.05]
[1746990838501,7.6518467,2507.2,2507.1,0.05]
[1746990838803,11.41743578,2507.2,2507.1,0.05]
[1746990839306,7.4289227,2507.2,2507.1,0.05]
[1746990840578,11.41743578,2507.2,2507.1,0.05]
[1746990841197,11.64090799,2507.2,2507.1,0.05]
[1746990841606,12.99610799,2507.2,2507.1,0.05]
[1746990842619,3.99010454,2506.2,2506.1,0.05]
[1746990842818,2.931,2506.2,2506.1,0.05]
[1746990843338,3.15457511,2506.2,2506.1,0.05]
[1746990844795,4.7289227,2506.6,2506.1,0.8324]
[1746990845136,1.7,2506.2,2506.1,0.8324]
[1746990845303,1.7,2506.2,2506.1,14.897689]
[1746990845633,1.7,2506.2,2506.1,16.3874579]
[1746990849114,1.7,2506.2,2506.1,10.3221689]
[1746990849452,1.7,2506.2,2506.1,16.7869059]
[1746990850569,1.7,2506.2,2506.1,14.897689]
[1746990850717,1.7,2506.2,2506.1,8.8324]
[1746990850918,3.98969338,2506.5,2506.2,8.0]
[1746990851122,3.99005731,2506.3,2506.1,0.05]
[1746990851360,3.99010454,2506.2,2506.1,0.05]
[1746990852720,2.4,2506.2,2506.1,0.05]
[1746990853149,8.71856136,2506.5,2506.1,0.05]
[1746990853655,3.98981386,2506.4,2506.1,0.05]
[1746990853972,3.98978614,2506.4,2506.1,0.05]
[1746990854326,3.99006866,2506.3,2506.1,0.05]
[1746990854624,3.98986372,2506.4,2506.1,0.05]
[1746990854825,4.7289227,2506.5,2506.2,0.8277]
[1746990855052,6.91605576,2506.9,2506.2,0.8277]
[1746990855260,7.6559227,2507.0,2506.2,0.8277]
[1746990856273,4.7289227,2507.4,2507.1,8.0]
[1746990856473,5.89545641,2507.7,2507.0,0.8277]
[1746990856709,11.6425284,2507.8,2507.0,0.8277]
[1746990856871,7.6549227,2507.8,2507.0,0.8277]
[1746990857075,7.6549227,2507.8,2507.0,1.71445897]
[1746990857324,11.64264001,2507.8,2507.0,1.71445897]
[1746990857468,0.22356664,2507.7,2507.0,1.71445897]
[1746990857812,2.7,2507.6,2507.0,1.71445897]
[1746990859811,2.7,2507.6,2507.1,0.82588703]
[1746990859997,2.7,2507.6,2507.1,0.786]
[1746990861724,2.7,2507.6,2507.2,0.03987987]
[1746990861928,4.7289227,2508.0,2507.3,0.7911]
[1746990862234,5.856,2508.1,2507.3,0.7911]
[1746990862235,2.923,2508.1,2507.3,0.7911]
[1746990862806,4.7289227,2508.3,2507.3,0.7911]
[1746990863006,7.6519227,2508.3,2507.3,0.7911]
[1746990863801,7.6509227,2508.3,2507.4,0.03987717]
[1746990864013,7.6509227,2508.3,2507.5,0.7976]
[1746990864208,0.8278,2508.5,2507.5,0.7976]
[1746990864416,3.7498,2508.5,2507.6,8.7976]
[1746990864604,0.7866,2508.0,2507.4,0.7976]
[1746990864806,2.922,2507.9,2507.4,0.7976]
[1746990865008,4.7289227,2507.9,2507.4,0.7976]
[1746990865200,4.7289227,2508.6,2508.0,8.0]
[1746990865443,4.7289227,2508.6,2507.5,8.03988238]
[1746990865444,4.7289227,2508.6,2508.1,0.7976]
[1746990867334,4.7289227,2508.6,2507.5,8.0]
[1746990867335,4.7289227,2508.6,2507.9,0.7976]
[1746990867515,3.98671538,2508.4,2507.2,2.932]
[1746990867709,4.7289227,2508.3,2507.3,8.7976]
[1746990868651,4.7289227,2508.3,2507.4,0.7976]
[1746990868823,4.7289227,2508.3,2507.6,0.8141]
[1746990874263,4.7289227,2508.3,2507.7,0.03987575]
[1746990874563,4.7289227,2508.3,2507.8,0.7582]
[1746990874758,2.7,2508.4,2507.8,0.7582]
[1746990880587,2.7,2508.4,2508.0,0.808]
[1746990882918,2.7,2508.4,2507.6,0.03986863]
[1746990882919,2.7,2508.4,2508.2,0.8229]
[1746990883361,2.7,2508.4,2508.3,1.7091768]
[1746990883568,4.7289227,2509.1,2508.4,0.8229]
[1746990883775,4.7289227,2509.1,2508.4,0.86276198]
[1746990885410,2.7,2508.9,2508.4,0.86276198]
[1746990887519,2.7,2508.9,2508.5,0.8122]
[1746990887715,2.7,2508.9,2508.6,3.84306376]
[1746990887919,2.7,2508.9,2508.7,8.8122]
[1746990892908,0.05,2509.4,2508.7,8.8122]
[1746990893126,0.05,2509.4,2508.7,8.85205698]
[1746990894150,0.05,2509.4,2508.9,8.0]
[1746990894351,0.05,2509.4,2509.1,8.8329]
[1746990894517,0.05,2509.4,2509.3,8.0]
[1746990894845,0.05,2509.4,2509.3,18.839782]
[1746990895606,0.05,2509.4,2509.3,17.488589]
[1746990895811,0.05,2509.4,2508.8,8.0]
[1746990896112,0.05,2509.4,2508.9,1.17499]
[1746990897834,2.7,2509.2,2508.9,1.17499]
[1746990899636,0.05,2509.4,2508.9,1.17499]
[1746990900451,0.05,2509.4,2509.0,0.87275674]
[1746990900811,0.05,2509.4,2509.2,8.0]
[1746990901136,0.05,2509.4,2509.3,12.10222751]
[1746990901337,0.05,2509.4,2509.3,33.689058]
[1746990901544,0.05,2509.4,2509.3,33.692358]